fUSD/lending_fUSD_20240419
["ID","MTS","AMOUNT","RATE_DAILY","PERIOD"]
[322946384,1713535943027,-594.85,0.00016643,2]
[322946385,1713535943037,-2683.22,0.00016643,2]
[322946386,1713535943046,-1223.92,0.00016643,2]
[322946387,1713535943055,-3769.27,0.00016643,2]
[322946388,1713535943063,-2713.38,0.00016643,2]
[322946389,1713535943072,-2503.47,0.00016643,2]
[322946390,1713535943081,-4027.8,0.00016643,2]
[322946391,1713535943090,-2546.1,0.00016643,2]
[322946392,1713535943100,-500.0,0.00016643,2]
[322946393,1713535943110,-500.0,0.00016643,2]
[322946394,1713535943119,-1841.36,0.00016643,2]
[322946395,1713535943128,-535.2947981,0.00016643,2]
[322946396,1713535943137,-4185.87,0.00016643,2]
[322946397,1713535943147,-4303.66,0.00016643,2]
[322946398,1713535943156,-539.67,0.00016643,2]
[322946399,1713535943165,-500.0,0.00016643,2]
[322946400,1713535943174,-783.51,0.00016643,2]
[322946401,1713535943184,-2818.66,0.00016643,2]
[322946402,1713535943193,-1071.14,0.00016643,2]
[322946403,1713535943202,-500.0,0.00016643,2]
[322946404,1713535943211,-5735.71,0.00016643,2]
[322946405,1713535943221,-500.0,0.00016643,2]
[322946406,1713535943231,-5058.09,0.00016643,2]
[322946407,1713535943241,-758.39,0.00016643,2]
[322946408,1713535943250,-400.11300109,0.00016643,2]
[322946409,1713535943260,-500.0,0.00016643,2]
[322946410,1713535943269,-500.0,0.00016643,2]
[322946411,1713535943278,-2882.56,0.00016643,2]
[322946412,1713535943408,-500.0,0.00016643,2]
[322946413,1713535943417,-1743.21,0.00016643,2]
[322946414,1713535943426,-1283.02,0.00016643,2]
[322946415,1713535943435,-500.0,0.00016643,2]
[322946416,1713535943444,-500.0,0.00016643,2]
[322946417,1713535943453,-677.05,0.00016643,2]
[322946418,1713535943462,-500.0,0.00016643,2]
[322946419,1713535943471,-573.30953153,0.00016643,2]
[322946420,1713535943481,-500.0,0.00016643,2]
[322946421,1713535943490,-2729.3,0.00016643,2]
[322946422,1713535943499,-3307.01,0.00016643,2]
[322946423,1713535943508,-500.0,0.00016643,2]
[322946424,1713535943517,-2909.5,0.00016643,2]
[322946425,1713535943526,-500.0,0.00016643,2]
[322946426,1713535943535,-180.450775,0.00016643,2]
[322946427,1713535943545,-180.450775,0.00016643,2]
[322946428,1713535943554,-2763.44,0.00016643,2]
[322946429,1713535943563,-500.0,0.00016643,2]
[322946430,1713535943572,-500.0,0.00016643,2]
[322946431,1713535943582,-4372.57,0.00016643,2]
[322946432,1713535943592,-151.0,0.00016643,2]
[322946433,1713535943602,-529.3220196,0.00016643,2]
[322946434,1713535943614,-151.0,0.00016643,2]
[322946435,1713535943627,-3104.32,0.00016643,2]
[322946436,1713535943638,-151.0,0.00016643,2]
[322946437,1713535943648,-401.29680992,0.00016643,2]
[322946438,1713535943658,-614.331742,0.00016643,2]
[322946439,1713535943673,-614.331742,0.00016643,2]
[322946440,1713535943683,-1858.8,0.00016643,2]
[322946441,1713535943692,-500.0,0.00016643,2]
[322946442,1713535943702,-151.0,0.00016643,2]
[322946443,1713535943712,-2809.8,0.00016643,2]
[322946444,1713535943722,-151.0,0.00016643,2]
[322946445,1713535943733,-968.62,0.00016643,2]
[322946446,1713535943743,-3566.65,0.00016643,2]
[322946447,1713535943752,-3088.13,0.00016643,2]
[322946448,1713535943762,-4365.601772,0.00016643,2]
[322946449,1713535943772,-4365.601772,0.00016643,2]
[322946450,1713535943782,-2073.56,0.00016643,2]
[322946451,1713535943791,-4021.21,0.00016643,2]
[322946452,1713535943802,-151.0,0.00016643,2]
[322946453,1713535943811,-500.0,0.00016643,2]
[322946454,1713535943821,-4749.78,0.00016643,2]
[322946455,1713535943831,-3873.23,0.00016643,2]
[322946456,1713535943841,-2721.08,0.00016643,2]
[322946457,1713535943851,-3323.51,0.00016643,2]
[322946458,1713535943865,-4524.53,0.00016643,2]
[322946459,1713535943875,-2991.79,0.00016643,2]
[322946460,1713535943885,-7984.31474331,0.00016681,2]
[322946461,1713535943894,-1468.2200445,0.00016711,2]
[322946462,1713535943904,-500.0,0.00016712,2]
[322946463,1713535943913,-1039.36,0.00016712,2]
[322946464,1713535943923,-500.0,0.00016712,2]
[322946465,1713535943933,-1497.27,0.00016712,2]
[322946466,1713535943943,-178.2,0.00016712,2]
[322946467,1713535943952,-1000.0,0.00016731,2]
[322946468,1713535943962,-244.38,0.00016745,2]
[322946469,1713535943971,-400.695251,0.00016786,2]
[322946470,1713535943980,-320.486329,0.00016786,2]
[322946471,1713535943989,-200.0,0.00016786,2]
[322946472,1713535943999,-35999.037138,0.00016786,2]
[322946473,1713535944009,-1577.19,0.00016814,2]
[322946474,1713535944019,-2403.87,0.00016814,2]
[322946475,1713535944029,-3712.45,0.00016814,2]
[322946476,1713535944039,-1374.52,0.00016814,2]
[322946477,1713535944049,-2444.18,0.00016814,2]
[322946478,1713535944058,-3441.39,0.00016814,2]
[322946479,1713535944067,-5832.13,0.00016815,2]
[322946480,1713535944076,-631.42,0.00016815,2]
[322946481,1713535944085,-1754.68,0.00016815,2]
[322946482,1713535944094,-5404.65,0.00016815,2]
[322946483,1713535944107,-5488.45,0.00016815,2]
[322946484,1713535944117,-5979.12,0.00016815,2]
[322946485,1713535944126,-7142.07,0.00016815,2]
[322946486,1713535944135,-12481.98,0.00016815,2]
[322946487,1713535944144,-2980.24,0.00016815,2]
[322946488,1713535944154,-4694.82,0.00016815,2]
[322946489,1713535944163,-8969.62,0.00016815,2]
[322946490,1713535944173,-5094.98,0.00016815,2]
[322946491,1713535944183,-2471.99,0.00016815,2]
[322946492,1713535944192,-2187.88,0.00016815,2]
[322946493,1713535944201,-37740.58,0.00016815,2]
[322946494,1713535944211,-7375.62,0.00016815,2]
[322946495,1713535944221,-2736.48,0.00016815,2]
[322946496,1713535944233,-1663.38,0.00016815,2]
[322946497,1713535944243,-13386.95,0.00016815,2]
[322946498,1713535944254,-5691.95,0.00016815,2]
[322946499,1713535944264,-3500.75,0.00016815,2]
[322946500,1713535944274,-3112.03,0.00016815,2]
[322946501,1713535944283,-1600.55,0.00016815,2]
[322946502,1713535944292,-15522.32,0.00016815,2]
[322946503,1713535944302,-6009.88,0.00016815,2]
[322946504,1713535944311,-988.64,0.00016815,2]
[322946505,1713535944320,-8987.15,0.00016815,2]
[322946506,1713535944330,-9398.74,0.00016815,2]
[322946507,1713535944341,-1928.15,0.00016815,2]
[322946508,1713535944351,-6022.82,0.00016815,2]
[322946509,1713535944365,-12113.02,0.00016815,2]
[322946510,1713535944375,-4147.36,0.00016815,2]
[322946511,1713535944385,-3622.76,0.00016815,2]
[322946512,1713535944395,-151.0,0.00016815,2]
[322946513,1713535944405,-10831.22,0.00016815,2]
[322946514,1713535944415,-4216.37,0.00016815,2]
[322946515,1713535944425,-8530.38,0.00016815,2]
[322946516,1713535944435,-500.0,0.00016815,2]
[322946517,1713535944444,-153.321542,0.00016815,2]
[322946518,1713535944455,-17399.69,0.00016815,2]
[322946519,1713535944465,-3885.45,0.00016815,2]
[322946520,1713535944474,-151.0,0.00016815,2]
[322946521,1713535944485,-843.578894,0.00016815,2]
[322946522,1713535944495,-4166.13,0.00016815,2]
[322946523,1713535944505,-15747.25,0.00016815,2]
[322946524,1713535944514,-163.27992,0.00016815,2]
[322946525,1713535944524,-843.578894,0.00016815,2]
[322946526,1713535944534,-151.0,0.00016815,2]
[322946527,1713535944544,-831.31,0.00016815,2]
[322946528,1713535944553,-31097.27,0.00016815,2]
[322946529,1713535944562,-2526.88,0.00016815,2]
[322946530,1713535944571,-10307.68,0.00016815,2]
[322946531,1713535944581,-10339.08,0.00016815,2]
[322946532,1713535944591,-9147.6,0.00016815,2]
[322946533,1713535944601,-4874.02,0.00016815,2]
[322946534,1713535944618,-151.0,0.00016815,2]
[322946535,1713535944630,-500.0,0.00016815,2]
[322946536,1713535944640,-3109.85,0.00016815,2]
[322946537,1713535944649,-4832.79,0.00016815,2]
[322946538,1713535944659,-12307.04,0.00016815,2]
[322946539,1713535944669,-8517.97,0.00016815,2]
[322946540,1713535944679,-19162.32,0.00016815,2]
[322946541,1713535944689,-500.0,0.00016815,2]
[322946542,1713535944701,-2052.23,0.00016815,2]
[322946543,1713535944713,-2721.28,0.00016815,2]
[322946544,1713535944724,-4812.2,0.00016815,2]
[322946545,1713535944733,-506.51995861,0.00016816,2]
[322946546,1713535944743,-500.0,0.00016816,2]
[322946547,1713535944752,-1256.34,0.00016816,2]
[322946548,1713535944762,-2015.01,0.00016816,2]
[322946549,1713535944771,-500.0,0.00016816,2]
[322946550,1713535944780,-1137.6,0.00016816,2]
[322946551,1713535944789,-500.0,0.00016816,2]
[322946552,1713535944799,-500.0,0.00016816,2]
[322946553,1713535944808,-500.0,0.00016816,2]
[322946554,1713535944817,-1149.65,0.00016816,2]
[322946555,1713535944826,-1124.18,0.00016816,2]
[322946556,1713535944836,-2664.07,0.00016816,2]
[322946557,1713535944845,-500.0,0.00016816,2]
[322946558,1713535944858,-3029.39,0.00016816,2]
[322946559,1713535944867,-665.57,0.00016816,2]
[322946560,1713535944877,-801.94,0.00016816,2]
[322946561,1713535944887,-1036.23,0.00016816,2]
[322946562,1713535944896,-931.09,0.00016816,2]
[322946563,1713535944906,-1570.47,0.00016816,2]
[322946564,1713535944915,-2368.82,0.00016816,2]
[322946565,1713535944926,-500.0,0.00016816,2]
[322946566,1713535944935,-997.98,0.00016816,2]
[322946567,1713535944945,-500.0,0.00016816,2]
[322946568,1713535944954,-2220.63,0.00016816,2]
[322946569,1713535944963,-500.0,0.00016816,2]
[322946570,1713535944973,-500.0,0.00016816,2]
[322946571,1713535944982,-500.0,0.00016816,2]
[322946572,1713535944991,-500.0,0.00016816,2]
[322946573,1713535945000,-2161.61,0.00016816,2]
[322946574,1713535945010,-3793.8,0.00016816,2]
[322946575,1713535945019,-585.07,0.00016816,2]
[322946576,1713535945028,-500.0,0.00016816,2]
[322946577,1713535945037,-510.92,0.00016816,2]
[322946578,1713535945046,-3148.54,0.00016816,2]
[322946579,1713535945055,-1402.93,0.00016816,2]
[322946580,1713535945064,-1589.6,0.00016816,2]
[322946581,1713535945074,-500.0,0.00016816,2]
[322946582,1713535945083,-4646.9,0.00016816,2]
[322946583,1713535945093,-551.43,0.00016816,2]
[322946584,1713535945102,-500.0,0.00016816,2]
[322946585,1713535945126,-2812.43,0.00016816,2]
[322946586,1713535945136,-2003.36,0.00016816,2]
[322946587,1713535945145,-580.17,0.00016816,2]
[322946588,1713535945155,-840.11,0.00016816,2]
[322946589,1713535945164,-500.0,0.00016816,2]
[322946590,1713535945174,-1725.14,0.00016816,2]
[322946591,1713535945184,-647.65,0.00016816,2]
[322946592,1713535945194,-1204.49,0.00016816,2]
[322946593,1713535945203,-756.26,0.00016816,2]
[322946594,1713535945213,-500.0,0.00016816,2]
[322946595,1713535945222,-4237.22,0.00016816,2]
[322946596,1713535945231,-1613.07,0.00016816,2]
[322946597,1713535945240,-500.0,0.00016816,2]
[322946598,1713535945250,-999.76,0.00016816,2]
[322946599,1713535945259,-5139.11,0.00016816,2]
[322946600,1713535945268,-500.0,0.00016816,2]
[322946601,1713535945277,-857.27,0.00016816,2]
[322946602,1713535945286,-216.95300422,0.00016816,2]
[322946603,1713535945295,-801.44,0.00016816,2]
[322946604,1713535945304,-3004.32,0.00016816,2]
[322946605,1713535945314,-4097.05,0.00016816,2]
[322946606,1713535945323,-500.0,0.00016816,2]
[322946607,1713535945333,-729.02,0.00016816,2]
[322946608,1713535945342,-500.0,0.00016816,2]
[322946609,1713535945351,-500.0,0.00016816,2]
[322946610,1713535945370,-500.75,0.00016816,2]
[322946611,1713535945379,-2863.26,0.00016816,2]
[322946612,1713535945388,-3464.11,0.00016816,2]
[322946613,1713535945397,-1488.66,0.00016816,2]
[322946614,1713535945406,-722.32,0.00016816,2]
[322946615,1713535945415,-1035.83,0.00016816,2]
[322946616,1713535945424,-2428.17,0.00016816,2]
[322946617,1713535945433,-1724.86,0.00016816,2]
[322946618,1713535945442,-1351.6,0.00016816,2]
[322946619,1713535945451,-1341.18,0.00016816,2]
[322946620,1713535945461,-500.0,0.00016816,2]
[322946621,1713535945470,-749.97,0.00016816,2]
[322946622,1713535945479,-1315.22,0.00016816,2]
[322946623,1713535945489,-691.75,0.00016816,2]
[322946624,1713535945498,-500.0,0.00016816,2]
[322946625,1713535945508,-754.08,0.00016816,2]
[322946626,1713535945517,-3789.86,0.00016816,2]
[322946627,1713535945527,-1084.1,0.00016816,2]
[322946628,1713535945536,-1325.33,0.00016816,2]
[322946629,1713535945546,-864.76,0.00016816,2]
[322946630,1713535945554,-755.03,0.00016816,2]
[322946631,1713535945563,-423.34126926,0.00016816,2]
[322946632,1713535945573,-1284.33,0.00016816,2]
[322946633,1713535945582,-1801.64,0.00016816,2]
[322946634,1713535945591,-1227.7,0.00016816,2]
[322946635,1713535945599,-999.93,0.00016816,2]
[322946636,1713535945615,-500.0,0.00016816,2]
[322946637,1713535945626,-3417.17,0.00016816,2]
[322946638,1713535945636,-542.61,0.00016816,2]
[322946639,1713535945646,-2071.34,0.00016816,2]
[322946640,1713535945655,-1502.04,0.00016816,2]
[322946641,1713535945666,-932.1,0.00016816,2]
[322946642,1713535945675,-500.0,0.00016816,2]
[322946643,1713535945685,-1615.58,0.00016816,2]
[322946644,1713535945694,-716.0,0.00016816,2]
[322946645,1713535945704,-500.0,0.00016816,2]
[322946646,1713535945714,-1008.46,0.00016816,2]
[322946647,1713535945723,-598.31,0.00016816,2]
[322946648,1713535945732,-375.11090588,0.00016816,2]
[322946649,1713535945741,-500.0,0.00016816,2]
[322946650,1713535945750,-500.0,0.00016816,2]
[322946651,1713535945760,-827.44,0.00016816,2]
[322946652,1713535945769,-500.0,0.00016816,2]
[322946653,1713535945778,-2578.47,0.00016816,2]
[322946654,1713535945788,-1186.64,0.00016816,2]
[322946655,1713535945797,-615.57343431,0.00016816,2]
[322946656,1713535945806,-500.0,0.00016816,2]
[322946657,1713535945815,-500.0,0.00016816,2]
[322946658,1713535945825,-500.0,0.00016816,2]
[322946659,1713535945835,-1604.09,0.00016816,2]
[322946660,1713535945845,-500.0,0.00016816,2]
[322946661,1713535945861,-991.89,0.00016816,2]
[322946662,1713535945870,-3094.82,0.00016816,2]
[322946663,1713535945884,-742.65,0.00016816,2]
[322946664,1713535945893,-500.0,0.00016816,2]
[322946665,1713535945903,-500.0,0.00016816,2]
[322946666,1713535945914,-500.0,0.00016816,2]
[322946667,1713535945923,-500.0,0.00016816,2]
[322946668,1713535945933,-868.39,0.00016816,2]
[322946669,1713535945942,-1410.74,0.00016816,2]
[322946670,1713535945953,-1811.26,0.00016816,2]
[322946671,1713535945963,-552.6,0.00016816,2]
[322946672,1713535945972,-2908.9,0.00016816,2]
[322946673,1713535945982,-516.05,0.00016816,2]
[322946674,1713535945991,-1547.07,0.00016816,2]
[322946675,1713535946000,-500.0,0.00016816,2]
[322946676,1713535946009,-782.08,0.00016816,2]
[322946677,1713535946019,-774.4,0.00016816,2]
[322946678,1713535946028,-1183.76,0.00016816,2]
[322946679,1713535946037,-500.0,0.00016816,2]
[322946680,1713535946046,-550.855713,0.00016816,2]
[322946681,1713535946054,-903.17,0.00016816,2]
[322946682,1713535946064,-491.24694429,0.00016816,2]
[322946683,1713535946073,-2298.11,0.00016816,2]
[322946684,1713535946082,-978.58,0.00016816,2]
[322946685,1713535946092,-2334.57,0.00016816,2]
[322946686,1713535946101,-3374.87,0.00016816,2]
[322946687,1713535946115,-1014.08,0.00016816,2]
[322946688,1713535946124,-1359.3,0.00016816,2]
[322946689,1713535946133,-500.0,0.00016816,2]
[322946690,1713535946142,-2018.16,0.00016816,2]
[322946691,1713535946151,-1637.81,0.00016816,2]
[322946692,1713535946160,-500.0,0.00016816,2]
[322946693,1713535946169,-500.0,0.00016816,2]
[322946694,1713535946178,-1971.56,0.00016816,2]
[322946695,1713535946187,-1145.46,0.00016816,2]
[322946696,1713535946197,-5560.1,0.00016816,2]
[322946697,1713535946206,-2291.26,0.00016816,2]
[322946698,1713535946215,-1529.74,0.00016816,2]
[322946699,1713535946225,-500.0,0.00016816,2]
[322946700,1713535946234,-1163.0,0.00016816,2]
[322946701,1713535946243,-950.14,0.00016816,2]
[322946702,1713535946252,-594.21,0.00016816,2]
[322946703,1713535946262,-500.0,0.00016816,2]
[322946704,1713535946271,-517.6,0.00016816,2]
[322946705,1713535946280,-500.0,0.00016816,2]
[322946706,1713535946289,-619.3,0.00016816,2]
[322946707,1713535946299,-500.0,0.00016816,2]
[322946708,1713535946308,-712.46,0.00016816,2]
[322946709,1713535946317,-693.94,0.00016816,2]
[322946710,1713535946327,-1133.39,0.00016816,2]
[322946711,1713535946337,-833.04,0.00016816,2]
[322946712,1713535946347,-2162.58,0.00016816,2]
[322946713,1713535946358,-5267.24,0.00016816,2]
[322946714,1713535946367,-1879.43,0.00016816,2]
[322946715,1713535946377,-1106.88,0.00016816,2]
[322946716,1713535946386,-713.55,0.00016816,2]
[322946717,1713535946395,-500.0,0.00016816,2]
[322946718,1713535946405,-500.0,0.00016816,2]
[322946719,1713535946414,-2106.2,0.00016816,2]
[322946720,1713535946424,-1460.57,0.00016816,2]
[322946721,1713535946433,-500.0,0.00016816,2]
[322946722,1713535946442,-341.14,0.00016816,2]
[322946723,1713535946451,-1246.63,0.00016816,2]
[322946724,1713535946461,-3217.97,0.00016816,2]
[322946725,1713535946470,-891.12,0.00016816,2]
[322946726,1713535946480,-500.0,0.00016816,2]
[322946727,1713535946489,-504.8,0.00016816,2]
[322946728,1713535946498,-500.0,0.00016816,2]
[322946729,1713535946507,-500.0,0.00016816,2]
[322946730,1713535946517,-830.87,0.00016816,2]
[322946731,1713535946526,-1048.12,0.00016816,2]
[322946732,1713535946536,-509.72,0.00016816,2]
[322946733,1713535946545,-975.66,0.00016816,2]
[322946734,1713535946554,-1798.67,0.00016816,2]
[322946735,1713535946564,-500.0,0.00016816,2]
[322946736,1713535946573,-500.0,0.00016816,2]
[322946737,1713535946583,-1934.62,0.00016816,2]
[322946738,1713535946592,-5247.18,0.00016816,2]
[322946739,1713535946601,-1857.03,0.00016816,2]
[322946740,1713535946613,-1843.98,0.00016816,2]
[322946741,1713535946623,-500.0,0.00016816,2]
[322946742,1713535946635,-500.0,0.00016816,2]
[322946743,1713535946645,-500.0,0.00016816,2]
[322946744,1713535946654,-1291.52,0.00016816,2]
[322946745,1713535946664,-15480.63,0.00016816,2]
[322946746,1713535946674,-849.57,0.00016816,2]
[322946747,1713535946683,-998.12,0.00016816,2]
[322946748,1713535946694,-670.98,0.00016816,2]
[322946749,1713535946703,-4624.68,0.00016816,2]
[322946750,1713535946715,-2760.35,0.00016816,2]
[322946751,1713535946725,-500.0,0.00016816,2]
[322946752,1713535946734,-500.0,0.00016816,2]
[322946753,1713535946743,-551.83560029,0.00016816,2]
[322946754,1713535946753,-2331.47,0.00016816,2]
[322946755,1713535946762,-13562.06,0.00016816,2]
[322946756,1713535946771,-913.31,0.00016816,2]
[322946757,1713535946781,-666.01,0.00016816,2]
[322946758,1713535946791,-500.0,0.00016816,2]
[322946759,1713535946800,-500.0,0.00016816,2]
[322946760,1713535946810,-724.4,0.00016816,2]
[322946761,1713535946819,-500.0,0.00016816,2]
[322946762,1713535946829,-500.0,0.00016816,2]
[322946763,1713535946839,-7003.47,0.00016816,2]
[322946764,1713535946848,-2634.21,0.00016816,2]
[322946765,1713535946859,-500.0,0.00016816,2]
[322946766,1713535946868,-500.0,0.00016816,2]
[322946767,1713535946877,-500.0,0.00016816,2]
[322946768,1713535946886,-842.1,0.00016816,2]
[322946769,1713535946895,-1709.83,0.00016816,2]
[322946770,1713535946905,-3554.74,0.00016816,2]
[322946771,1713535946915,-1276.41,0.00016816,2]
[322946772,1713535946924,-500.0,0.00016816,2]
[322946773,1713535946935,-1881.59,0.00016816,2]
[322946774,1713535946944,-660.64,0.00016816,2]
[322946775,1713535946956,-500.0,0.00016816,2]
[322946776,1713535946965,-500.0,0.00016816,2]
[322946777,1713535946975,-500.0,0.00016816,2]
[322946778,1713535946984,-11830.29,0.00016816,2]
[322946779,1713535946993,-591.99,0.00016816,2]
[322946780,1713535947002,-518.61,0.00016816,2]
[322946781,1713535947011,-500.0,0.00016816,2]
[322946782,1713535947020,-500.0,0.00016816,2]
[322946783,1713535947030,-596.19,0.00016816,2]
[322946784,1713535947039,-500.0,0.00016816,2]
[322946785,1713535947048,-21084.37,0.00016816,2]
[322946786,1713535947058,-500.0,0.00016816,2]
[322946787,1713535947067,-501.63,0.00016816,2]
[322946788,1713535947077,-500.0,0.00016816,2]
[322946789,1713535947086,-4168.67,0.00016816,2]
[322946790,1713535947095,-500.0,0.00016816,2]
[322946791,1713535947108,-1586.61,0.00016816,2]
[322946792,1713535947118,-1051.59,0.00016816,2]
[322946793,1713535947129,-1632.93,0.00016816,2]
[322946794,1713535947138,-745.68,0.00016816,2]
[322946795,1713535947149,-1278.38,0.00016816,2]
[322946796,1713535947158,-624.95,0.00016816,2]
[322946797,1713535947168,-807.02,0.00016816,2]
[322946798,1713535947177,-102471.52,0.00016816,2]
[322946799,1713535947187,-500.0,0.00016816,2]
[322946800,1713535947197,-2794.61,0.00016816,2]
[322946801,1713535947206,-2514.92,0.00016816,2]
[322946802,1713535947215,-807.66,0.00016816,2]
[322946803,1713535947225,-2394.7,0.00016816,2]
[322946804,1713535947234,-500.0,0.00016816,2]
[322946805,1713535947244,-500.0,0.00016816,2]
[322946806,1713535947254,-4623.15,0.00016816,2]
[322946807,1713535947263,-1840.41,0.00016816,2]
[322946808,1713535947273,-1421.71,0.00016816,2]
[322946809,1713535947282,-1165.58,0.00016816,2]
[322946810,1713535947291,-500.0,0.00016816,2]
[322946811,1713535947301,-500.0,0.00016816,2]
[322946812,1713535947310,-5682.43,0.00016816,2]
[322946813,1713535947319,-500.0,0.00016816,2]
[322946814,1713535947329,-1198.64,0.00016816,2]
[322946815,1713535947340,-1146.28,0.00016816,2]
[322946816,1713535947350,-7698.24,0.00016816,2]
[322946817,1713535947363,-638.93,0.00016816,2]
[322946818,1713535947372,-1719.9,0.00016816,2]
[322946819,1713535947382,-5472.51,0.00016816,2]
[322946820,1713535947392,-1577.17,0.00016816,2]
[322946821,1713535947401,-500.0,0.00016816,2]
[322946822,1713535947411,-552.22,0.00016816,2]
[322946823,1713535947421,-500.0,0.00016816,2]
[322946824,1713535947431,-8996.02,0.00016816,2]
[322946825,1713535947441,-1200.96,0.00016816,2]
[322946826,1713535947451,-500.0,0.00016816,2]
[322946827,1713535947460,-2212.07,0.00016816,2]
[322946828,1713535947469,-636.57,0.00016816,2]
[322946829,1713535947478,-385.8,0.00016816,2]
[322946830,1713535947488,-500.0,0.00016816,2]
[322946831,1713535947497,-500.0,0.00016816,2]
[322946832,1713535947507,-4721.47,0.00016816,2]
[322946833,1713535947516,-500.0,0.00016816,2]
[322946834,1713535947526,-6115.97,0.00016816,2]
[322946835,1713535947536,-500.0,0.00016816,2]
[322946836,1713535947545,-672.48,0.00016816,2]
[322946837,1713535947698,-500.0,0.00016816,2]
[322946838,1713535947739,-500.0,0.00016816,2]
[322946839,1713535947749,-522.38,0.00016816,2]
[322946840,1713535947758,-4199.06,0.00016816,2]
[322946841,1713535947769,-400.74946163,0.00016816,2]
[322946842,1713535947778,-6854.52,0.00016816,2]
[322946843,1713535947788,-1135.7,0.00016816,2]
[322946844,1713535947797,-1678.26,0.00016816,2]
[322946845,1713535947806,-526.39,0.00016816,2]
[322946846,1713535947816,-1417.59,0.00016816,2]
[322946847,1713535947825,-500.0,0.00016816,2]
[322946848,1713535947835,-500.0,0.00016816,2]
[322946849,1713535947845,-5358.08,0.00016816,2]
[322946850,1713535947855,-4597.56,0.00016816,2]
[322946851,1713535947868,-1005.95,0.00016816,2]
[322946852,1713535947878,-18297.04,0.00016816,2]
[322946853,1713535947888,-5312.02,0.00016816,2]
[322946854,1713535947897,-500.0,0.00016816,2]
[322946855,1713535947907,-616.64,0.00016816,2]
[322946856,1713535947917,-666.34,0.00016816,2]
[322946857,1713535947927,-1186.54,0.00016816,2]
[322946858,1713535947937,-743.09,0.00016816,2]
[322946859,1713535947947,-2797.58,0.00016816,2]
[322946860,1713535947956,-738.1,0.00016816,2]
[322946861,1713535947966,-5190.07,0.00016816,2]
[322946862,1713535947976,-715.48,0.00016816,2]
[322946863,1713535947987,-1077.85,0.00016816,2]
[322946864,1713535947997,-4252.03,0.00016816,2]
[322946865,1713535948007,-1295.04,0.00016816,2]
[322946866,1713535948017,-1314.58,0.00016816,2]
[322946867,1713535948026,-513.91,0.00016816,2]
[322946868,1713535948037,-948.21,0.00016816,2]
[322946869,1713535948046,-500.0,0.00016816,2]
[322946870,1713535948056,-2058.08,0.00016816,2]
[322946871,1713535948065,-1092.57,0.00016816,2]
[322946872,1713535948075,-1632.01,0.00016816,2]
[322946873,1713535948085,-772.82,0.00016816,2]
[322946874,1713535948094,-1368.24,0.00016816,2]
[322946875,1713535948103,-500.0,0.00016816,2]
[322946876,1713535948120,-3270.6,0.00016816,2]
[322946877,1713535948131,-1336.22,0.00016816,2]
[322946878,1713535948142,-6888.91,0.00016816,2]
[322946879,1713535948153,-500.0,0.00016816,2]
[322946880,1713535948163,-157.52828679,0.00016816,2]
[322946881,1713535948173,-1221.36,0.00016816,2]
[322946882,1713535948182,-500.0,0.00016816,2]
[322946883,1713535948191,-3213.91,0.00016816,2]